[Event "*** Titled Tuesday Blitz"]
[Site "Chess.com"]
[Date "2020.11.03"]
[Round "10"]
[White "Trickov"]
[Black "Fischerev7"]
[Result "0-1"]
[WhiteElo "2323"]
[BlackElo "2409"]
[TimeControl "180+1"]
[EndTime "11:59:31 PST"]
[Termination "Fischerev7 won on time"]

1. d4 {[%clk 0:02:58.4]} 1... Nf6 {[%clk 0:02:57.1]} 2. Nf3 {[%clk 0:02:58.3]}
2... e6 {[%clk 0:02:53.7]} 3. g3 {[%clk 0:02:57.1]} 3... d5 {[%clk 0:02:51.2]}
4. Bg2 {[%clk 0:02:53.9]} 4... b5 {[%clk 0:02:51]} 5. O-O {[%clk 0:02:49.1]}
5... Bb7 {[%clk 0:02:49.9]} 6. a4 {[%clk 0:02:49.5]} 6... c6 {[%clk 0:02:48]} 7.
Ne5 {[%clk 0:02:48.5]} 7... Nbd7 {[%clk 0:02:46.6]} 8. f4 {[%clk 0:02:47.7]}
8... Bd6 {[%clk 0:02:46]} 9. b3 {[%clk 0:02:44.7]} 9... a5 {[%clk 0:02:45.6]}
10. c4 {[%clk 0:02:36.9]} 10... bxc4 {[%clk 0:02:20.7]} 11. bxc4 {[%clk
0:02:35.7]} 11... c5 {[%clk 0:02:16.7]} 12. Ba3 {[%clk 0:02:26.9]} 12... Qb6
{[%clk 0:02:15.1]} 13. cxd5 {[%clk 0:01:54.8]} 13... Nxd5 {[%clk 0:02:13]} 14.
Nxd7 {[%clk 0:01:48.7]} 14... Kxd7 {[%clk 0:02:13]} 15. e4 {[%clk 0:01:41.6]}
15... Ne3 {[%clk 0:02:10.8]} 16. Qh5 {[%clk 0:01:23.9]} 16... g6 {[%clk
0:02:02.5]} 17. dxc5 {[%clk 0:01:16.4]} 17... gxh5 {[%clk 0:01:50.6]} 18. cxb6
{[%clk 0:01:15.5]} 18... Bxa3 {[%clk 0:01:49.1]} 19. Nxa3 {[%clk 0:01:02.2]}
19... Nxf1 {[%clk 0:01:48.7]} 20. Kxf1 {[%clk 0:00:54.7]} 20... Rac8 {[%clk
0:01:48.5]} 21. Rd1+ {[%clk 0:00:52.2]} 21... Ke7 {[%clk 0:01:46.5]} 22. e5
{[%clk 0:00:28.8]} 22... Bxg2+ {[%clk 0:01:42.8]} 23. Kxg2 {[%clk 0:00:27.9]}
23... Rc6 {[%clk 0:01:43.5]} 24. Nb5 {[%clk 0:00:19.4]} 24... Rxb6 {[%clk
0:01:42]} 25. Rc1 {[%clk 0:00:17.8]} 25... Rb7 {[%clk 0:01:39.9]} 26. Rc6 {[%clk
0:00:17.8]} 26... Ra8 {[%clk 0:01:35.3]} 27. Kh3 {[%clk 0:00:16.2]} 27... Kd7
{[%clk 0:01:35.4]} 28. Rd6+ {[%clk 0:00:13.3]} 28... Ke7 {[%clk 0:01:35.6]} 29.
Kh4 {[%clk 0:00:12.3]} 29... f6 {[%clk 0:01:32]} 30. Kxh5 {[%clk 0:00:10.8]}
30... fxe5 {[%clk 0:01:32.3]} 31. fxe5 {[%clk 0:00:10.7]} 31... Rf8 {[%clk
0:01:27.4]} 32. Ra6 {[%clk 0:00:10.2]} 32... Rf5+ {[%clk 0:01:27]} 33. Kg4
{[%clk 0:00:10.5]} 33... Rxe5 {[%clk 0:01:27.1]} 34. Rxa5 {[%clk 0:00:11]} 34...
Re2 {[%clk 0:01:24.3]} 35. h4 {[%clk 0:00:11.1]} 35... e5 {[%clk 0:01:23.4]} 36.
Nc3 {[%clk 0:00:09.8]} 36... Rd2 {[%clk 0:01:13.2]} 37. Ne4 {[%clk 0:00:07.4]}
37... Ke6 {[%clk 0:00:59.1]} 38. Nxd2 {[%clk 0:00:06.4]} 38... Rb4+ {[%clk
0:00:55.2]} 39. Kf3 {[%clk 0:00:05.8]} 39... h5 {[%clk 0:00:53.5]} 40. Ne4
{[%clk 0:00:05.6]} 40... Rb3+ {[%clk 0:00:53.2]} 41. Ke2 {[%clk 0:00:05.2]}
41... Rb2+ {[%clk 0:00:52.7]} 42. Kd3 {[%clk 0:00:03.6]} 42... Rg2 {[%clk
0:00:53]} 43. Ra6+ {[%clk 0:00:00.9]} 43... Ke7 {[%clk 0:00:53.3]} 0-1

[Event "*** Titled Tuesday Blitz"]
[Site "Chess.com"]
[Date "2020.11.03"]
[Round "10"]
[White "Chamal_Gedgafov"]
[Black "ARTHURMOTIVATOR"]
[Result "0-1"]
[WhiteElo "2132"]
[BlackElo "2353"]
[TimeControl "180+1"]
[EndTime "11:59:33 PST"]
[Termination "ARTHURMOTIVATOR won on time"]

1. d4 {[%clk 0:02:48.9]} 1... Nf6 {[%clk 0:02:58.8]} 2. c4 {[%clk 0:02:45.4]}
2... c5 {[%clk 0:02:58.7]} 3. d5 {[%clk 0:02:44.7]} 3... g6 {[%clk 0:02:57.5]}
4. Nc3 {[%clk 0:02:44.6]} 4... Bg7 {[%clk 0:02:57.5]} 5. Nf3 {[%clk 0:02:43.1]}
5... d6 {[%clk 0:02:57.5]} 6. e4 {[%clk 0:02:38]} 6... O-O {[%clk 0:02:56.7]} 7.
h3 {[%clk 0:02:37.7]} 7... e6 {[%clk 0:02:56.5]} 8. Be2 {[%clk 0:02:37.4]} 8...
Na6 {[%clk 0:02:54.7]} 9. O-O {[%clk 0:02:35.5]} 9... e5 {[%clk 0:02:53.6]} 10.
a3 {[%clk 0:02:31.8]} 10... h6 {[%clk 0:02:50.8]} 11. Rb1 {[%clk 0:02:30.4]}
11... Nh5 {[%clk 0:02:49.5]} 12. b4 {[%clk 0:02:25.2]} 12... Nf4 {[%clk
0:02:46.4]} 13. Be3 {[%clk 0:02:22.6]} 13... b6 {[%clk 0:02:24.4]} 14. Ne1
{[%clk 0:02:16.3]} 14... f5 {[%clk 0:02:16.6]} 15. Nd3 {[%clk 0:02:12]} 15...
Nxe2+ {[%clk 0:02:07]} 16. Qxe2 {[%clk 0:02:09.3]} 16... f4 {[%clk 0:02:07.9]}
17. Bd2 {[%clk 0:02:09.1]} 17... f3 {[%clk 0:02:04.9]} 18. gxf3 {[%clk 0:01:54]}
18... Bxh3 {[%clk 0:02:03.7]} 19. Rfc1 {[%clk 0:01:31.5]} 19... Qh4 {[%clk
0:01:53.8]} 20. bxc5 {[%clk 0:00:50.9]} 20... Rf4 {[%clk 0:01:33.7]} 21. Bxf4
{[%clk 0:00:18.3]} 21... exf4 {[%clk 0:01:32.4]} 22. Nxf4 {[%clk 0:00:17.4]}
22... Qxf4 {[%clk 0:01:03.8]} 23. Qe3 {[%clk 0:00:17.5]} 23... Qh4 {[%clk
0:01:03.6]} 24. f4 {[%clk 0:00:17.1]} 24... Rf8 {[%clk 0:00:55.6]} 25. Ne2
{[%clk 0:00:16.3]} 25... Nxc5 {[%clk 0:00:52.2]} 26. Qg3 {[%clk 0:00:12.3]}
26... Qh5 {[%clk 0:00:48.9]} 27. f3 {[%clk 0:00:11.2]} 27... Nxe4 {[%clk
0:00:30.2]} 28. fxe4 {[%clk 0:00:07.7]} 28... Qxe2 {[%clk 0:00:31.1]} 29. Qxh3
{[%clk 0:00:07.4]} 29... Rxf4 {[%clk 0:00:23]} 30. Rf1 {[%clk 0:00:07.2]} 30...
Rg4+ {[%clk 0:00:20.1]} 31. Kh1 {[%clk 0:00:07.3]} 31... Qxe4+ {[%clk 0:00:20]}
32. Kh2 {[%clk 0:00:05.8]} 32... Be5+ {[%clk 0:00:19]} 0-1

[Event "*** Titled Tuesday Blitz"]
[Site "Chess.com"]
[Date "2020.11.03"]
[Round "10"]
[White "Titus369"]
[Black "ajdemipopushi"]
[Result "1-0"]
[WhiteElo "2544"]
[BlackElo "2368"]
[TimeControl "180+1"]
[EndTime "11:59:38 PST"]
[Termination "Titus369 won on time"]

1. e4 {[%clk 0:03:00.9]} 1... c5 {[%clk 0:02:59.5]} 2. Nf3 {[%clk 0:02:58.2]}
2... g6 {[%clk 0:02:59.9]} 3. d4 {[%clk 0:02:58.7]} 3... cxd4 {[%clk 0:03:00.3]}
4. Qxd4 {[%clk 0:02:58.9]} 4... Nf6 {[%clk 0:03:00.3]} 5. e5 {[%clk 0:02:57.8]}
5... Nc6 {[%clk 0:03:00.6]} 6. Qf4 {[%clk 0:02:49.7]} 6... Nd5 {[%clk
0:02:59.5]} 7. Qe4 {[%clk 0:02:49.5]} 7... Nb6 {[%clk 0:02:59]} 8. Nc3 {[%clk
0:02:45.7]} 8... Bg7 {[%clk 0:02:58.5]} 9. Bf4 {[%clk 0:02:41]} 9... d5 {[%clk
0:02:55.6]} 10. exd6 {[%clk 0:02:40]} 10... Bf5 {[%clk 0:02:55.5]} 11. Qe3
{[%clk 0:02:36.3]} 11... O-O {[%clk 0:02:39.4]} 12. O-O-O {[%clk 0:02:31.5]}
12... exd6 {[%clk 0:02:37.4]} 13. Rxd6 {[%clk 0:02:28.4]} 13... Qc8 {[%clk
0:02:37.1]} 14. Bb5 {[%clk 0:02:19.7]} 14... Re8 {[%clk 0:02:31]} 15. Qc5 {[%clk
0:02:13.4]} 15... Bf8 {[%clk 0:02:19.2]} 16. Rxc6 {[%clk 0:02:04.7]} 16... Bxc5
{[%clk 0:02:07.8]} 17. Rxc8 {[%clk 0:02:04.7]} 17... Rexc8 {[%clk 0:02:07.5]}
18. Bg3 {[%clk 0:02:01.4]} 18... a6 {[%clk 0:01:59.4]} 19. Be2 {[%clk
0:02:01.6]} 19... Bb4 {[%clk 0:01:58.4]} 20. Be5 {[%clk 0:01:59.3]} 20... Nc4
{[%clk 0:01:47.8]} 21. Bf6 {[%clk 0:01:42.6]} 21... Rc6 {[%clk 0:01:19.9]} 22.
Nd5 {[%clk 0:01:40.6]} 22... Bf8 {[%clk 0:01:06.3]} 23. Nd4 {[%clk 0:01:34.6]}
23... Rc5 {[%clk 0:00:57.4]} 24. Bxc4 {[%clk 0:01:21.3]} 24... Rxc4 {[%clk
0:00:56.8]} 25. Nb6 {[%clk 0:01:21.5]} 25... Rxd4 {[%clk 0:00:37.2]} 26. Bxd4
{[%clk 0:01:19.1]} 26... Rd8 {[%clk 0:00:37.2]} 27. Rd1 {[%clk 0:01:12.5]} 27...
Bh6+ {[%clk 0:00:32.4]} 28. Be3 {[%clk 0:01:12.7]} 28... Bxe3+ {[%clk
0:00:29.2]} 29. fxe3 {[%clk 0:01:12.7]} 29... Re8 {[%clk 0:00:29.2]} 30. Nd5
{[%clk 0:01:11.3]} 30... Kg7 {[%clk 0:00:26.3]} 31. g3 {[%clk 0:01:07.4]} 31...
Be4 {[%clk 0:00:24.5]} 32. Nc3 {[%clk 0:01:05.1]} 32... Bc6 {[%clk 0:00:24.4]}
33. Re1 {[%clk 0:01:04.5]} 33... f5 {[%clk 0:00:24]} 34. Kd2 {[%clk 0:01:04.9]}
34... h5 {[%clk 0:00:24.1]} 35. Ke2 {[%clk 0:01:05.3]} 35... h4 {[%clk
0:00:24.5]} 36. gxh4 {[%clk 0:00:59.7]} 36... Rh8 {[%clk 0:00:23.3]} 37. Rf1
{[%clk 0:00:58.4]} 37... Rxh4 {[%clk 0:00:22.9]} 38. Rf2 {[%clk 0:00:59.1]}
38... b5 {[%clk 0:00:20.9]} 39. a3 {[%clk 0:00:58.8]} 39... Kf6 {[%clk
0:00:18.1]} 40. Kd2 {[%clk 0:00:57.5]} 40... Ke5 {[%clk 0:00:17.9]} 41. Ne2
{[%clk 0:00:57.7]} 41... b4 {[%clk 0:00:15.9]} 42. Nf4 {[%clk 0:00:57.3]} 42...
Kf6 {[%clk 0:00:13.6]} 43. axb4 {[%clk 0:00:55.9]} 43... Bb5 {[%clk 0:00:11.1]}
44. c3 {[%clk 0:00:44.3]} 44... g5 {[%clk 0:00:09.8]} 45. Nd3 {[%clk 0:00:40.8]}
45... Rh3 {[%clk 0:00:06.8]} 46. Nc5 {[%clk 0:00:36.1]} 46... Ke5 {[%clk
0:00:04.2]} 47. b3 {[%clk 0:00:35]} 1-0

[Event "*** Titled Tuesday Blitz"]
[Site "Chess.com"]
[Date "2020.11.03"]
[Round "10"]
[White "Zkid"]
[Black "ssrija97"]
[Result "1-0"]
[WhiteElo "2766"]
[BlackElo "2319"]
[TimeControl "180+1"]
[EndTime "11:59:39 PST"]
[Termination "Zkid won on time"]

1. e4 {[%clk 0:03:00.9]} 1... e5 {[%clk 0:02:59.7]} 2. Nf3 {[%clk 0:02:57.9]}
2... Nc6 {[%clk 0:02:59.8]} 3. Bc4 {[%clk 0:02:56.2]} 3... Nf6 {[%clk
0:02:59.4]} 4. d3 {[%clk 0:02:55.1]} 4... Bc5 {[%clk 0:02:59]} 5. O-O {[%clk
0:02:51.7]} 5... d6 {[%clk 0:02:54.8]} 6. c3 {[%clk 0:02:50.6]} 6... a6 {[%clk
0:02:55]} 7. a4 {[%clk 0:02:49.2]} 7... Ba7 {[%clk 0:02:54.5]} 8. Nbd2 {[%clk
0:02:45.2]} 8... Ne7 {[%clk 0:02:44.9]} 9. Re1 {[%clk 0:02:34.9]} 9... Ng6
{[%clk 0:02:43]} 10. Nf1 {[%clk 0:02:34.5]} 10... O-O {[%clk 0:02:32.8]} 11. Be3
{[%clk 0:02:15.4]} 11... c6 {[%clk 0:02:23.3]} 12. Bxa7 {[%clk 0:02:12.1]} 12...
Rxa7 {[%clk 0:02:24.2]} 13. d4 {[%clk 0:02:04.3]} 13... Qe7 {[%clk 0:02:16.2]}
14. a5 {[%clk 0:01:53.3]} 14... Nf4 {[%clk 0:02:09.8]} 15. Ng3 {[%clk
0:01:44.8]} 15... Bg4 {[%clk 0:01:57.4]} 16. h3 {[%clk 0:01:41]} 16... Bc8
{[%clk 0:01:50.5]} 17. Qd2 {[%clk 0:01:32.5]} 17... Qc7 {[%clk 0:01:37.9]} 18.
Rad1 {[%clk 0:01:06]} 18... Qxa5 {[%clk 0:01:29.6]} 19. dxe5 {[%clk 0:01:05.9]}
19... dxe5 {[%clk 0:01:29.7]} 20. Qd6 {[%clk 0:01:04]} 20... b5 {[%clk
0:01:21.3]} 21. Nxe5 {[%clk 0:00:48.2]} 21... bxc4 {[%clk 0:01:00.9]} 22. Nxc6
{[%clk 0:00:44.4]} 22... Qa4 {[%clk 0:00:38.4]} 23. Nxa7 {[%clk 0:00:38.8]}
23... Nd3 {[%clk 0:00:38.4]} 24. Rf1 {[%clk 0:00:24]} 24... Bb7 {[%clk
0:00:35.5]} 25. e5 {[%clk 0:00:19.3]} 25... Ne4 {[%clk 0:00:29.1]} 26. Nxe4
{[%clk 0:00:18.3]} 26... Bxe4 {[%clk 0:00:30]} 27. Qd4 {[%clk 0:00:18.6]} 27...
Bg6 {[%clk 0:00:26.1]} 28. Ra1 {[%clk 0:00:18]} 28... Qb3 {[%clk 0:00:22.7]} 29.
Rxa6 {[%clk 0:00:18]} 29... Nxb2 {[%clk 0:00:21.9]} 30. Rb6 {[%clk 0:00:16.3]}
30... Qa3 {[%clk 0:00:20.4]} 31. Nb5 {[%clk 0:00:15.8]} 31... Qa2 {[%clk
0:00:19.3]} 32. Nd6 {[%clk 0:00:15.8]} 32... Bd3 {[%clk 0:00:17.7]} 33. Re1
{[%clk 0:00:14.9]} 33... h5 {[%clk 0:00:17]} 34. e6 {[%clk 0:00:15.1]} 34...
fxe6 {[%clk 0:00:16.5]} 35. Rb7 {[%clk 0:00:15.2]} 1-0

[Event "*** Titled Tuesday Blitz"]
[Site "Chess.com"]
[Date "2020.11.03"]
[Round "10"]
[White "dretch"]
[Black "IwkooO"]
[Result "1-0"]
[WhiteElo "2841"]
[BlackElo "2658"]
[TimeControl "180+1"]
[EndTime "11:59:40 PST"]
[Termination "dretch won by checkmate"]

1. d4 {[%clk 0:03:00.9]} 1... Nf6 {[%clk 0:02:59.9]} 2. c4 {[%clk 0:03:01.5]}
2... e6 {[%clk 0:03:00.1]} 3. Nc3 {[%clk 0:03:02.1]} 3... Bb4 {[%clk 0:03:00]}
4. Qc2 {[%clk 0:03:02.7]} 4... b6 {[%clk 0:02:54.5]} 5. e4 {[%clk 0:03:01.6]}
5... c5 {[%clk 0:02:54.6]} 6. a3 {[%clk 0:03:02.1]} 6... Bxc3+ {[%clk
0:02:07.7]} 7. bxc3 {[%clk 0:03:03]} 7... Nc6 {[%clk 0:02:04.4]} 8. Nf3 {[%clk
0:02:58.9]} 8... d6 {[%clk 0:01:55.3]} 9. e5 {[%clk 0:02:48.7]} 9... dxe5 {[%clk
0:01:54.4]} 10. dxe5 {[%clk 0:02:48.7]} 10... Nd7 {[%clk 0:01:53.4]} 11. Bf4
{[%clk 0:02:47.6]} 11... Qc7 {[%clk 0:01:49.6]} 12. Be2 {[%clk 0:02:44.8]} 12...
Bb7 {[%clk 0:01:43.5]} 13. O-O {[%clk 0:02:40.1]} 13... Ndxe5 {[%clk 0:01:13.4]}
14. Nxe5 {[%clk 0:02:30.5]} 14... Nxe5 {[%clk 0:01:13.4]} 15. f3 {[%clk
0:01:54.2]} 15... O-O {[%clk 0:01:04.4]} 16. Bd3 {[%clk 0:01:51.4]} 16... g6
{[%clk 0:01:01.5]} 17. Rae1 {[%clk 0:01:48.1]} 17... f6 {[%clk 0:01:00.5]} 18.
Be4 {[%clk 0:01:27.8]} 18... Bxe4 {[%clk 0:00:47.7]} 19. Rxe4 {[%clk 0:01:27.4]}
19... Rad8 {[%clk 0:00:47.5]} 20. Rfe1 {[%clk 0:01:23.7]} 20... Qd6 {[%clk
0:00:40.2]} 21. Bxe5 {[%clk 0:01:17.5]} 21... fxe5 {[%clk 0:00:40.3]} 22. Rxe5
{[%clk 0:01:18.1]} 22... Qd3 {[%clk 0:00:39]} 23. Qb3 {[%clk 0:01:07.7]} 23...
Qd2 {[%clk 0:00:37.9]} 24. R5e2 {[%clk 0:00:59.1]} 24... Qg5 {[%clk 0:00:32.1]}
25. Rf2 {[%clk 0:00:29]} 25... Rd3 {[%clk 0:00:25.7]} 26. Kh1 {[%clk 0:00:17.3]}
26... Rfd8 {[%clk 0:00:18.8]} 27. Rfe2 {[%clk 0:00:17.5]} 27... Rd2 {[%clk
0:00:12.1]} 28. Qb1 {[%clk 0:00:17.4]} 28... Rxe2 {[%clk 0:00:11.7]} 29. Rxe2
{[%clk 0:00:18.3]} 29... Qf6 {[%clk 0:00:11.3]} 30. Qe1 {[%clk 0:00:17.9]} 30...
Rd3 {[%clk 0:00:07.8]} 31. Rxe6 {[%clk 0:00:16.7]} 31... Qxc3 {[%clk 0:00:07.5]}
32. Re8+ {[%clk 0:00:16.5]} 32... Kg7 {[%clk 0:00:08.1]} 33. Qe7+ {[%clk
0:00:16.6]} 33... Kh6 {[%clk 0:00:07]} 34. Qh4+ {[%clk 0:00:15.9]} 34... Kg7
{[%clk 0:00:07.5]} 35. h3 {[%clk 0:00:13.2]} 35... Rd7 {[%clk 0:00:05]} 36. Qf4
{[%clk 0:00:10.6]} 36... Qa1+ {[%clk 0:00:04.7]} 37. Kh2 {[%clk 0:00:10.7]}
37... Qd4 {[%clk 0:00:05.3]} 38. Qf8# {[%clk 0:00:10.5]} 1-0

[Event "*** Titled Tuesday Blitz"]
[Site "Chess.com"]
[Date "2020.11.03"]
[Round "10"]
[White "arminmusovic"]
[Black "Oligan22"]
[Result "0-1"]
[WhiteElo "2542"]
[BlackElo "2417"]
[TimeControl "180+1"]
[EndTime "11:59:40 PST"]
[Termination "Oligan22 won by checkmate"]

1. a3 {[%clk 0:03:00.9]} 1... d5 {[%clk 0:02:59.4]} 2. Nc3 {[%clk 0:03:00.8]}
2... e5 {[%clk 0:02:55.6]} 3. d4 {[%clk 0:03:00.7]} 3... exd4 {[%clk 0:02:51.6]}
4. Qxd4 {[%clk 0:03:01.6]} 4... Nf6 {[%clk 0:02:51.9]} 5. e4 {[%clk 0:03:01.2]}
5... Nc6 {[%clk 0:02:30.4]} 6. Bb5 {[%clk 0:03:00.6]} 6... Bd7 {[%clk
0:02:10.6]} 7. Bxc6 {[%clk 0:03:00.2]} 7... Bxc6 {[%clk 0:02:05.3]} 8. e5 {[%clk
0:03:00.5]} 8... Nd7 {[%clk 0:02:04]} 9. Nxd5 {[%clk 0:02:53.1]} 9... Bc5 {[%clk
0:02:03.6]} 10. Qd1 {[%clk 0:02:50.3]} 10... Nxe5 {[%clk 0:01:58]} 11. c4 {[%clk
0:02:35.2]} 11... Nxc4 {[%clk 0:01:39.3]} 12. Qe2+ {[%clk 0:02:33.7]} 12... Kf8
{[%clk 0:01:39.6]} 13. Qxc4 {[%clk 0:02:11.9]} 13... Qxd5 {[%clk 0:01:39.5]} 14.
Qxd5 {[%clk 0:02:09]} 14... Bxd5 {[%clk 0:01:40.4]} 15. Nf3 {[%clk 0:02:07.8]}
15... Re8+ {[%clk 0:01:38.3]} 16. Be3 {[%clk 0:02:02.6]} 16... Bxe3 {[%clk
0:01:37.5]} 17. fxe3 {[%clk 0:02:03.5]} 17... Rxe3+ {[%clk 0:01:36.9]} 18. Kd2
{[%clk 0:01:59.7]} 18... Re7 {[%clk 0:01:28.4]} 19. Rhf1 {[%clk 0:01:55.3]}
19... f6 {[%clk 0:01:26.2]} 20. Rf2 {[%clk 0:01:51.1]} 20... Kf7 {[%clk
0:01:22.4]} 21. Ng5+ {[%clk 0:01:49.1]} 21... Kg6 {[%clk 0:01:22.6]} 22. Nh3
{[%clk 0:01:50]} 22... Rd8 {[%clk 0:01:20.9]} 23. Kc3 {[%clk 0:01:44.6]} 23...
Re3+ {[%clk 0:01:13.3]} 24. Kd4 {[%clk 0:01:43.9]} 24... Re4+ {[%clk 0:01:03.5]}
25. Kc3 {[%clk 0:01:43.1]} 25... Rc4+ {[%clk 0:01:00.4]} 26. Kd3 {[%clk
0:01:35.3]} 26... Be6+ {[%clk 0:00:39.1]} 27. Ke3 {[%clk 0:01:33.6]} 27... Bxh3
{[%clk 0:00:36.1]} 28. gxh3 {[%clk 0:01:34.5]} 28... Rh4 {[%clk 0:00:32.2]} 29.
Rg1+ {[%clk 0:01:30.7]} 29... Kf7 {[%clk 0:00:32.2]} 30. Rg3 {[%clk 0:01:30.5]}
30... Rd5 {[%clk 0:00:27.5]} 31. Rfg2 {[%clk 0:01:27.5]} 31... g6 {[%clk
0:00:27.4]} 32. Rf3 {[%clk 0:01:27.2]} 32... f5 {[%clk 0:00:26.6]} 33. Rf4
{[%clk 0:01:18.4]} 33... Rxf4 {[%clk 0:00:26.6]} 34. Kxf4 {[%clk 0:01:19.3]}
34... Rd3 {[%clk 0:00:26.4]} 35. Rg3 {[%clk 0:01:06.8]} 35... Rxg3 {[%clk
0:00:25.4]} 36. hxg3 {[%clk 0:01:07.7]} 36... Ke6 {[%clk 0:00:24.1]} 37. g4
{[%clk 0:01:07.7]} 37... fxg4 {[%clk 0:00:20.1]} 38. Kxg4 {[%clk 0:01:08.2]}
38... h6 {[%clk 0:00:18.5]} 39. Kf4 {[%clk 0:01:07.3]} 39... Kd5 {[%clk
0:00:17.5]} 40. b3 {[%clk 0:01:02.8]} 40... c5 {[%clk 0:00:17.3]} 41. Kg4 {[%clk
0:01:03.3]} 41... b5 {[%clk 0:00:17.1]} 42. Kf3 {[%clk 0:01:03.8]} 42... Kd4
{[%clk 0:00:17.2]} 43. h4 {[%clk 0:01:02.8]} 43... Kc3 {[%clk 0:00:15.9]} 44.
Ke4 {[%clk 0:01:00.7]} 44... Kxb3 {[%clk 0:00:15.9]} 45. Ke5 {[%clk 0:01:00.8]}
45... c4 {[%clk 0:00:16.3]} 46. Kf6 {[%clk 0:01:01.2]} 46... c3 {[%clk
0:00:15.6]} 47. Kxg6 {[%clk 0:01:01.8]} 47... c2 {[%clk 0:00:16.2]} 48. Kxh6
{[%clk 0:01:00.8]} 48... c1=Q+ {[%clk 0:00:17.1]} 49. Kg6 {[%clk 0:01:01.7]}
49... Kxa3 {[%clk 0:00:17.2]} 50. h5 {[%clk 0:01:02.6]} 50... Qc2+ {[%clk
0:00:16.8]} 51. Kg7 {[%clk 0:01:02.2]} 51... b4 {[%clk 0:00:17.7]} 52. h6 {[%clk
0:01:01.6]} 52... b3 {[%clk 0:00:18.6]} 53. Kg8 {[%clk 0:01:02.4]} 53... b2
{[%clk 0:00:18.8]} 54. h7 {[%clk 0:01:00.5]} 54... Qc8+ {[%clk 0:00:18.5]} 55.
Kg7 {[%clk 0:00:59.9]} 55... b1=Q {[%clk 0:00:19]} 56. Kh6 {[%clk 0:01:00.2]}
56... Qh1+ {[%clk 0:00:18.4]} 57. Kg5 {[%clk 0:01:00]} 57... Qd8+ {[%clk
0:00:18.2]} 58. Kg6 {[%clk 0:00:59.7]} 58... Qg2+ {[%clk 0:00:18]} 59. Kh5
{[%clk 0:00:59.4]} 59... Qe8+ {[%clk 0:00:16.7]} 60. Kh6 {[%clk 0:00:59.4]}
60... Qf8+ {[%clk 0:00:16.5]} 61. Kh5 {[%clk 0:00:59.4]} 61... Qf7+ {[%clk
0:00:17]} 62. Kh4 {[%clk 0:00:59.5]} 62... Qxh7# {[%clk 0:00:17.2]} 0-1

[Event "*** Titled Tuesday Blitz"]
[Site "Chess.com"]
[Date "2020.11.03"]
[Round "10"]
[White "PavlovDanila"]
[Black "GameOverBro"]
[Result "1-0"]
[WhiteElo "2673"]
[BlackElo "2524"]
[TimeControl "180+1"]
[EndTime "11:59:41 PST"]
[Termination "PavlovDanila won by resignation"]

1. e4 {[%clk 0:03:00.9]} 1... d6 {[%clk 0:03:00.1]} 2. d4 {[%clk 0:02:59.7]}
2... Nf6 {[%clk 0:03:00.4]} 3. Nc3 {[%clk 0:03:00.2]} 3... e5 {[%clk 0:02:59.9]}
4. Nf3 {[%clk 0:03:00.7]} 4... Nbd7 {[%clk 0:02:59.6]} 5. Rg1 {[%clk 0:03:00.7]}
5... h5 {[%clk 0:02:58]} 6. Bg5 {[%clk 0:02:59.9]} 6... c6 {[%clk 0:02:57.7]} 7.
Qd2 {[%clk 0:03:00.1]} 7... a5 {[%clk 0:02:57.4]} 8. O-O-O {[%clk 0:03:00.3]}
8... a4 {[%clk 0:02:57.8]} 9. a3 {[%clk 0:02:59.9]} 9... Qa5 {[%clk 0:02:57.2]}
10. Kb1 {[%clk 0:02:59]} 10... Be7 {[%clk 0:02:56.8]} 11. h3 {[%clk 0:02:56.7]}
11... b5 {[%clk 0:02:56.4]} 12. Bxf6 {[%clk 0:02:43.8]} 12... Bxf6 {[%clk
0:02:47.6]} 13. d5 {[%clk 0:02:43.9]} 13... cxd5 {[%clk 0:02:08.6]} 14. Nxd5
{[%clk 0:02:32.9]} 14... Qxd2 {[%clk 0:02:06.5]} 15. Rxd2 {[%clk 0:02:33.8]}
15... O-O {[%clk 0:01:56]} 16. Nc7 {[%clk 0:02:30]} 16... Bb7 {[%clk 0:01:51.2]}
17. Nxa8 {[%clk 0:02:28.6]} 17... Rxa8 {[%clk 0:01:46.5]} 18. Rxd6 {[%clk
0:02:24.5]} 18... Nc5 {[%clk 0:01:46.2]} 19. Bxb5 {[%clk 0:02:06.9]} 19... Nxe4
{[%clk 0:01:38.9]} 20. Rd7 {[%clk 0:02:02.9]} 20... Bc8 {[%clk 0:01:39]} 21. Rc7
{[%clk 0:01:50.2]} 21... Nxf2 {[%clk 0:01:38.8]} 22. Nd2 {[%clk 0:01:37.5]}
22... e4 {[%clk 0:01:30.5]} 23. Bc6 {[%clk 0:01:36.8]} 23... Rb8 {[%clk
0:01:30.9]} 24. Nxe4 {[%clk 0:01:30.5]} 24... Nxe4 {[%clk 0:01:19]} 25. Bxe4
{[%clk 0:01:30.4]} 25... Rxb2+ {[%clk 0:01:17.6]} 26. Kc1 {[%clk 0:01:30.2]}
26... Be6 {[%clk 0:01:13.3]} 27. Rf1 {[%clk 0:01:10.9]} 27... Ra2 {[%clk
0:01:00.3]} 28. Rf3 {[%clk 0:01:09.4]} 28... Bb2+ {[%clk 0:00:49.6]} 29. Kd1
{[%clk 0:00:58.9]} 29... Bxa3 {[%clk 0:00:47.7]} 30. Rd3 {[%clk 0:00:49.8]}
30... g5 {[%clk 0:00:44]} 31. Bd5 {[%clk 0:00:30.3]} 31... Ra1+ {[%clk
0:00:20.8]} 32. Ke2 {[%clk 0:00:29.2]} 32... Bd6 {[%clk 0:00:20.4]} 33. Ra7
{[%clk 0:00:20.5]} 33... Bxd5 {[%clk 0:00:20.3]} 34. Rxd5 {[%clk 0:00:21.1]}
34... Bf4 {[%clk 0:00:20.9]} 35. g3 {[%clk 0:00:17.9]} 35... Bc1 {[%clk
0:00:19.3]} 36. Rd8+ {[%clk 0:00:13.6]} 36... Kg7 {[%clk 0:00:19.1]} 37. Rdd7
{[%clk 0:00:14.2]} 37... a3 {[%clk 0:00:17.8]} 38. Rxf7+ {[%clk 0:00:14.4]}
38... Kg6 {[%clk 0:00:18.7]} 39. Rf1 {[%clk 0:00:11.5]} 39... a2 {[%clk
0:00:17]} 40. g4 {[%clk 0:00:11.3]} 40... hxg4 {[%clk 0:00:16.9]} 41. hxg4
{[%clk 0:00:11.8]} 41... Bb2 {[%clk 0:00:14.3]} 42. Rxa1 {[%clk 0:00:11.4]}
42... Bxa1 {[%clk 0:00:15.2]} 43. Rxa2 {[%clk 0:00:11.7]} 1-0